fUST/lending_fUST_20251119
["ID","MTS","AMOUNT","RATE_DAILY","PERIOD"]
[394400831,1763532640108,-281.57120085,0.00025862,3]
[394400833,1763532640117,-333.0,0.00025862,3]
[394400835,1763532640127,-450.0,0.00025868,2]
[394400837,1763532640136,-980.29856148,0.00025949,2]
[394400839,1763532640146,-527.98819789,0.00026,2]
[394400841,1763532640156,-19900.0,0.00026,2]
[394400843,1763532640166,-2451.35,0.00026,7]
[394400845,1763532640177,-400.87691731,0.00026,7]
[394400847,1763532640187,-5000.0,0.0002601,2]
[394400849,1763532640196,-1260.0,0.00026011,2]
[394400851,1763532640205,-1091.42205962,0.00026078,2]
[394400853,1763532640215,-1012.948085,0.000261,7]
[394400855,1763532640225,-166.8028097,0.00026155,2]
[394400857,1763532640234,-193.91683724,0.0002616,2]
[394400859,1763532640244,-2500.0,0.00026264,2]
[394400860,1763532640254,-1177.96074033,0.00026264,2]
[394400862,1763532640263,-2500.0,0.00026264,2]
[394400864,1763532640273,-525.37,0.00026301,2]
[394400866,1763532640282,-450.0,0.00026301,2]
[394400868,1763532640290,-550.0,0.00026301,2]
[394400870,1763532640300,-989.0,0.00026364,2]
[394400872,1763532640309,-2151.0,0.00026364,2]
[394400874,1763532640318,-630.0,0.00026364,2]
[394400876,1763532640327,-160.0,0.00026411,3]
[394400878,1763532640336,-152.29509897,0.00026416,2]
[394400879,1763532640345,-414.0,0.00026507,2]
[394400881,1763532640354,-414.0,0.00026507,2]
[394400883,1763532640363,-1360.0,0.00026559,2]
[394400885,1763532640372,-5787.87,0.000266,14]
[394400887,1763532640381,-208.30217644,0.00026638,2]
[394400889,1763532640389,-1132.720159,0.00026676,2]
[394400891,1763532640398,-3000.0,0.00026812,2]
[394400893,1763532640408,-3000.0,0.00026812,2]
[394400895,1763532640417,-550.0,0.00026849,2]
[394400897,1763532640426,-600.0,0.00026849,2]
[394400899,1763532640435,-400.75959016,0.00026996,2]
[394400901,1763532640444,-5762.018141,0.00027,30]
[394400903,1763532640453,-1460.0,0.00027107,2]
[394400905,1763532640462,-400.75959016,0.00027113,9]
[394400907,1763532640472,-1013.6073683,0.00027123,3]
[394400909,1763532640480,-1000.0,0.00027137,30]
[394400911,1763532640489,-492.0,0.00027137,30]
[394400913,1763532640498,-455.07176423,0.00027149,2]
[394400915,1763532640509,-2258.0,0.00027159,2]
[394400917,1763532640517,-53901.88,0.000272,2]
[394400919,1763532640526,-455.07176423,0.00027206,5]
[394400921,1763532640535,-400.75959016,0.0002723,17]
[394400923,1763532640545,-455.07176423,0.00027262,9]
[394400925,1763532640554,-207.28944311,0.00027269,30]
[394400927,1763532640563,-455.07176423,0.00027319,13]
[394400929,1763532640572,-400.75959016,0.00027346,25]
[394400931,1763532640581,-1292.76527071,0.0002736,2]
[394400933,1763532640590,-3500.0,0.0002736,2]
[394400935,1763532640599,-455.07176423,0.00027376,16]
[394400937,1763532640608,-194.0,0.00027386,7]
[394400939,1763532640617,-525.37,0.00027397,2]
[394400941,1763532640626,-151.0,0.00027397,2]
[394400942,1763532640635,-1000.0,0.00027397,2]
[394400944,1763532640644,-1000.0,0.00027397,2]
[394400946,1763532640654,-1000.0,0.00027397,2]
[394400948,1763532640663,-1000.0,0.00027397,2]
[394400950,1763532640672,-1000.0,0.00027397,2]
[394400952,1763532640681,-1000.0,0.00027397,2]
[394400954,1763532640690,-1000.0,0.00027397,2]
[394400956,1763532640699,-967.08107596,0.00027397,2]
[394400958,1763532640708,-204.97747472,0.00027397,2]
[394400960,1763532640717,-445.93129602,0.00027397,5]
[394400962,1763532640727,-708.15770449,0.00027397,5]
[394400964,1763532640736,-151.0,0.00027397,7]
[394400966,1763532640745,-151.0,0.00027397,7]
[394400968,1763532640755,-151.0,0.00027397,7]
[394400970,1763532640764,-151.0,0.00027397,7]
[394400972,1763532640773,-151.0,0.00027397,7]
[394400974,1763532640782,-151.0,0.00027397,7]
[394400976,1763532640791,-152.695074,0.00027397,7]
[394400978,1763532640800,-151.0,0.00027397,7]
[394400980,1763532640809,-153.977307,0.00027397,7]
[394400982,1763532640819,-150.0,0.00027397,5]
[394400984,1763532640827,-150.0,0.00027397,5]
[394400986,1763532640836,-160.0,0.00027399,4]
[394400988,1763532640846,-2761.97,0.000274,2]
[394400990,1763532640855,-1012.948085,0.000274,7]
[394400992,1763532640865,-151.0,0.00027424,2]
[394400994,1763532640874,-455.07176423,0.00027432,20]
[394400996,1763532640884,-151.0,0.00027452,2]
[394400998,1763532640893,-5000.0,0.00027455,2]
[394401000,1763532640903,-400.75959016,0.00027463,32]
[394401002,1763532640913,-239.03213784,0.00027479,2]
[394401004,1763532640923,-455.07176423,0.00027489,24]
[394401006,1763532640933,-28753.75663527,0.000275,2]
[394401008,1763532640942,-151.0,0.000275,7]
[394401010,1763532640952,-151.0,0.000275,7]
[394401011,1763532640962,-151.0,0.000275,7]
[394401013,1763532640971,-151.0,0.000275,7]
[394401016,1763532640981,-151.0,0.000275,7]
[394401017,1763532640991,-151.0,0.000275,7]
[394401020,1763532641008,-151.0,0.000275,7]
[394401023,1763532641023,-206.177411,0.000275,7]
[394401025,1763532641033,-206.177411,0.000275,7]
[394401027,1763532641043,-151.0,0.000275,7]
[394401029,1763532641053,-206.177411,0.000275,7]
[394401031,1763532641064,-151.0,0.000275,7]
[394401033,1763532641074,-206.177411,0.000275,7]
[394401035,1763532641084,-151.0,0.000275,7]
[394401037,1763532641095,-151.0,0.000275,7]
[394401039,1763532641105,-1054.590418,0.000275,7]
[394401041,1763532641116,-535.742615,0.000275,7]
[394401043,1763532641126,-1054.590418,0.000275,7]
[394401046,1763532641137,-535.742615,0.000275,7]
[394401048,1763532641146,-1054.590418,0.000275,7]
[394401050,1763532641156,-535.742615,0.000275,7]
[394401052,1763532641166,-1054.590418,0.000275,7]
[394401054,1763532641179,-535.742615,0.000275,7]
[394401055,1763532641189,-164.289777,0.000275,7]
[394401058,1763532641199,-151.0,0.000275,7]
[394401060,1763532641210,-151.0,0.000275,7]
[394401062,1763532641220,-263.498483,0.000275,7]
[394401064,1763532641230,-455.07176423,0.00027546,28]
[394401066,1763532641239,-400.75959016,0.0002758,40]
[394401068,1763532641254,-2451.35,0.000276,7]
[394401069,1763532641265,-455.07176423,0.00027603,31]
[394401071,1763532641276,-194.0,0.00027616,14]
[394401073,1763532641286,-446.24230572,0.00027631,2]
[394401075,1763532641296,-1560.0,0.00027655,2]
[394401077,1763532641307,-151.0,0.00027659,7]
[394401079,1763532641316,-151.0,0.00027659,7]
[394401081,1763532641326,-151.0,0.00027659,7]
[394401083,1763532641336,-151.0,0.00027659,7]
[394401085,1763532641345,-151.0,0.00027659,7]
[394401087,1763532641355,-151.0,0.00027659,7]
[394401089,1763532641365,-151.0,0.00027659,7]
[394401091,1763532641374,-151.0,0.00027659,7]
[394401093,1763532641384,-151.0,0.00027659,7]
[394401095,1763532641394,-226.466376,0.00027659,7]
[394401097,1763532641403,-455.07176423,0.00027659,35]
[394401099,1763532641412,-400.75959016,0.00027697,48]
[394401101,1763532641422,-455.07176423,0.00027716,39]
[394401103,1763532641431,-455.07176423,0.00027773,42]
[394401105,1763532641440,-400.75959016,0.00027814,56]
[394401107,1763532641450,-455.07176423,0.0002783,46]
[394401109,1763532641459,-455.07176423,0.00027886,50]
[394401111,1763532641468,-4000.0,0.00027908,5]
[394401113,1763532641477,-400.75959016,0.00027931,63]
[394401115,1763532641486,-455.07176423,0.00027943,54]
[394401117,1763532641496,-250.0,0.00027945,5]
[394401119,1763532641507,-250.0,0.00027945,5]
[394401121,1763532641516,-455.07176423,0.00028,57]
[394401123,1763532641526,-15265.41380508,0.00028,2]
[394401125,1763532641535,-151.0,0.00028,7]
[394401127,1763532641544,-151.0,0.00028,7]
[394401129,1763532641553,-151.0,0.00028,7]
[394401131,1763532641562,-151.0,0.00028,7]
[394401133,1763532641572,-151.0,0.00028,7]
[394401135,1763532641581,-151.0,0.00028,7]
[394401137,1763532641591,-285.435934,0.00028,7]
[394401139,1763532641600,-285.435934,0.00028,7]
[394401141,1763532641610,-285.435934,0.00028,7]
[394401143,1763532641619,-285.435934,0.00028,7]
[394401145,1763532641628,-151.0,0.00028,7]
[394401146,1763532641638,-400.87691731,0.00028,3]
[394401148,1763532641648,-166.8028097,0.00028023,2]
[394401150,1763532641657,-400.75959016,0.00028048,71]
[394401152,1763532641666,-455.07176423,0.00028057,61]
[394401154,1763532641675,-455.07176423,0.00028113,65]
[394401156,1763532641685,-400.75959016,0.00028164,79]
[394401158,1763532641694,-455.07176423,0.0002817,69]
[394401160,1763532641704,-5787.87,0.000282,14]
[394401162,1763532641713,-1660.0,0.00028203,2]
[394401164,1763532641723,-599.999999,0.0002827,2]
[394401166,1763532641733,-400.75959016,0.00028281,86]
[394401168,1763532641743,-160.0,0.00028386,5]
[394401170,1763532641756,-400.75959016,0.00028398,94]
[394401172,1763532641766,-2000.0,0.00028452,7]
[394401174,1763532641776,-4500.0,0.00028456,5]
[394401176,1763532641785,-525.37,0.00028493,2]
[394401178,1763532641795,-446.76715095,0.00028493,5]
[394401180,1763532641805,-350.0,0.00028493,5]
[394401182,1763532641814,-86101.98442718,0.000285,7]
[394401184,1763532641824,-286.450871,0.000285,7]
[394401186,1763532641833,-151.0,0.000285,7]
[394401188,1763532641842,-151.0,0.000285,7]
[394401190,1763532641851,-151.0,0.000285,7]
[394401192,1763532641860,-151.0,0.000285,7]
[394401193,1763532641870,-151.0,0.000285,7]
[394401195,1763532641879,-168.756887,0.000285,7]
[394401197,1763532641888,-168.756887,0.000285,7]
[394401199,1763532641898,-168.756887,0.000285,7]
[394401201,1763532641908,-168.756887,0.000285,7]
[394401204,1763532641918,-151.0,0.000285,7]
[394401206,1763532641928,-151.0,0.000285,7]
[394401207,1763532641937,-151.0,0.000285,7]
[394401209,1763532641947,-151.0,0.000285,7]
[394401211,1763532641956,-151.0,0.000285,7]
[394401213,1763532641968,-151.0,0.000285,7]
[394401215,1763532641977,-151.0,0.000285,7]
[394401217,1763532641986,-151.0,0.000285,7]
[394401219,1763532641996,-151.0,0.000285,7]
[394401221,1763532642008,-151.0,0.000285,7]
[394401223,1763532642018,-151.0,0.000285,7]
[394401225,1763532642027,-151.0,0.000285,7]
[394401227,1763532642037,-151.0,0.000285,7]
[394401229,1763532642047,-151.0,0.000285,7]
[394401231,1763532642056,-151.0,0.000285,7]
[394401233,1763532642065,-151.0,0.000285,7]
[394401235,1763532642075,-154.149645,0.000285,7]
[394401237,1763532642084,-151.0,0.000285,7]
[394401239,1763532642094,-175.331614,0.000285,7]
[394401241,1763532642103,-151.0,0.000285,7]
[394401243,1763532642113,-857.229514,0.000285,7]
[394401245,1763532642122,-857.229514,0.000285,7]
[394401247,1763532642131,-857.229514,0.000285,7]
[394401249,1763532642141,-857.229514,0.000285,7]
[394401251,1763532642150,-151.0,0.000285,7]
[394401253,1763532642159,-151.0,0.000285,7]
[394401254,1763532642172,-151.0,0.000285,7]
[394401256,1763532642181,-151.0,0.000285,7]
[394401258,1763532642191,-151.0,0.000285,7]
[394401260,1763532642201,-151.0,0.000285,7]
[394401262,1763532642210,-206.942255,0.000285,7]
[394401264,1763532642221,-206.942255,0.000285,7]
[394401266,1763532642230,-206.942255,0.000285,7]
[394401268,1763532642239,-206.942255,0.000285,7]
[394401281,1763532642361,-151.0,0.000285,7]
[394401282,1763532642381,-151.0,0.000285,7]
[394401283,1763532642391,-151.0,0.000285,7]
[394401284,1763532642400,-154.13258,0.000285,7]
[394401285,1763532642410,-151.0,0.000285,7]
[394401286,1763532642420,-157.502932,0.000285,7]
[394401287,1763532642429,-151.0,0.000285,7]
[394401288,1763532642439,-151.0,0.000285,7]
[394401289,1763532642449,-151.0,0.000285,7]
[394401290,1763532642458,-151.0,0.000285,7]
[394401291,1763532642467,-151.0,0.000285,7]
[394401292,1763532642476,-157.05812,0.000285,7]
[394401293,1763532642485,-151.0,0.000285,7]
[394401294,1763532642495,-151.0,0.000285,7]
[394401295,1763532642506,-151.0,0.000285,7]
[394401297,1763532642515,-151.0,0.000285,7]
[394401299,1763532642525,-151.0,0.000285,7]
[394401301,1763532642534,-151.0,0.000285,7]
[394401303,1763532642544,-281.881846,0.000285,7]
[394401305,1763532642554,-895.61969,0.000285,2]
[394401307,1763532642563,-151.0,0.000285,7]
[394401309,1763532642573,-895.61969,0.000285,2]
[394401312,1763532642582,-151.0,0.000285,7]
[394401314,1763532642591,-895.61969,0.000285,2]
[394401316,1763532642601,-151.0,0.000285,7]
[394401318,1763532642610,-895.61969,0.000285,2]
[394401320,1763532642619,-151.0,0.000285,7]
[394401322,1763532642628,-208.263525,0.000285,7]
[394401324,1763532642638,-208.263525,0.000285,7]
[394401326,1763532642647,-208.263525,0.000285,7]
[394401328,1763532642656,-208.263525,0.000285,7]
[394401330,1763532642665,-151.0,0.000285,7]
[394401332,1763532642675,-151.0,0.000285,7]
[394401334,1763532642684,-151.0,0.000285,7]
[394401336,1763532642693,-272.896447,0.000285,7]
[394401338,1763532642702,-159.218276,0.000285,7]
[394401340,1763532642711,-272.896447,0.000285,7]
[394401342,1763532642721,-159.218276,0.000285,7]
[394401344,1763532642730,-272.896447,0.000285,7]
[394401346,1763532642739,-159.218276,0.000285,7]
[394401348,1763532642748,-272.896447,0.000285,7]
[394401350,1763532642758,-159.218276,0.000285,7]
[394401352,1763532642767,-161.719591,0.000285,7]
[394401354,1763532642776,-423.067706,0.000285,7]
[394401356,1763532642785,-423.067706,0.000285,7]
[394401358,1763532642794,-423.067706,0.000285,7]
[394401360,1763532642803,-423.067706,0.000285,7]
[394401362,1763532642813,-254.27228,0.000285,7]
[394401364,1763532642822,-254.27228,0.000285,7]
[394401366,1763532642832,-254.27228,0.000285,7]
[394401368,1763532642842,-254.27228,0.000285,7]
[394401370,1763532642851,-151.0,0.000285,7]
[394401372,1763532642861,-151.0,0.000285,7]
[394401374,1763532642871,-457.345415,0.000285,7]
[394401376,1763532642880,-649.944084,0.000285,7]
[394401378,1763532642890,-577.822956,0.000285,7]
[394401380,1763532642900,-151.0,0.000285,7]
[394401383,1763532642910,-649.944084,0.000285,7]
[394401385,1763532642919,-457.345415,0.000285,7]
[394401387,1763532642929,-577.822956,0.000285,7]
[394401389,1763532642939,-816.479289,0.000285,7]
[394401390,1763532642948,-649.944084,0.000285,7]
[394401392,1763532642958,-577.822956,0.000285,7]
[394401394,1763532642967,-457.345415,0.000285,7]
[394401397,1763532642977,-816.479289,0.000285,7]
[394401399,1763532642986,-649.944084,0.000285,7]
[394401401,1763532642996,-577.822956,0.000285,7]
[394401403,1763532643006,-816.479289,0.000285,7]
[394401405,1763532643015,-457.345415,0.000285,7]
[394401407,1763532643025,-816.479289,0.000285,7]
[394401409,1763532643034,-151.0,0.000285,7]
[394401411,1763532643044,-151.0,0.000285,7]
[394401412,1763532643054,-151.0,0.000285,7]
[394401415,1763532643064,-151.0,0.000285,7]
[394401417,1763532643073,-151.0,0.000285,7]
[394401419,1763532643083,-151.0,0.000285,7]
[394401421,1763532643093,-151.0,0.000285,7]
[394401423,1763532643103,-199.089647,0.000285,7]
[394401424,1763532643112,-199.089647,0.000285,7]
[394401427,1763532643122,-151.0,0.000285,7]
[394401429,1763532643131,-151.0,0.000285,7]
[394401431,1763532643141,-199.089647,0.000285,7]
[394401432,1763532643150,-151.0,0.000285,7]
[394401434,1763532643160,-199.089647,0.000285,7]
[394401436,1763532643171,-400.75959016,0.00028515,102]
[394401438,1763532643183,-53901.88,0.000286,2]
[394401440,1763532643192,-400.75959016,0.00028632,110]
[394401442,1763532643201,-175.080425,0.000287,7]
[394401444,1763532643211,-1012.948085,0.000287,7]
[394401446,1763532643223,-1760.0,0.0002875,2]
[394401448,1763532643232,-26760.38542251,0.0002876,2]
[394401450,1763532643243,-5000.0,0.00028899,2]
[394401452,1763532643253,-2761.97,0.000289,2]
[394401454,1763532643262,-927.84,0.00028939,2]
[394401456,1763532643272,-194.0,0.00028997,14]
[394401458,1763532643281,-4358.9966448,0.00029004,5]
[394401460,1763532643293,-450.0,0.00029041,5]
[394401462,1763532643302,-2451.35,0.000291,7]
[394401464,1763532643312,-1860.0,0.00029298,2]
[394401466,1763532643321,-989.0,0.00029364,2]
[394401468,1763532643330,-2151.0,0.00029364,2]
[394401470,1763532643340,-630.0,0.00029364,2]
[394401472,1763532643350,-160.0,0.00029374,6]
[394401474,1763532643359,-414.0,0.00029507,2]
[394401476,1763532643368,-414.0,0.00029507,2]
[394401478,1763532643378,-2000.0,0.00029586,7]
[394401480,1763532643387,-525.37,0.00029589,2]
[394401482,1763532643396,-550.0,0.00029589,5]
[394401484,1763532643406,-484.85942833,0.00029631,2]
[394401486,1763532643415,-1776.19026781,0.00029697,2]
[394401502,1763532643564,-1116.99906767,0.00029697,2]
[394401505,1763532643575,-268.81066452,0.00029697,2]
[394401507,1763532643585,-631.18933548,0.00029846,2]
[394401643,1763532651352,-1328.81066452,0.00029846,2]
[394401644,1763532651362,-1000.0,0.00029851,30]
[394401645,1763532651371,-791.0,0.00029851,30]
[394401646,1763532651381,-166.8028097,0.00029891,2]
[394401647,1763532651390,-300.25515709,0.00029973,5]
[394401648,1763532651399,-14851.8354943,0.0003,2]
[394401649,1763532651408,-21893.16634838,0.0003,2]
[394401650,1763532651417,-269.02703775,0.0003,2]
[394401651,1763532651426,-418.65181736,0.0003,2]
[394401652,1763532651437,-900.0,0.0003,2]
[394401653,1763532651447,-90538.37748266,0.0003,7]
[394401654,1763532651458,-215848.3231379,0.0003,30]
[394401655,1763532651467,-143692.15542698,0.0003,30]
[394401656,1763532651481,-536.9641004,0.0003,30]
[394401657,1763532651575,-269.52697061,0.0002999,10]
[394401658,1763532651587,-903.74714844,0.0002999,10]
[394401659,1763532651598,-6317.31588095,0.0002999,10]
[394401660,1763532651608,-114374.52055419,0.0003,30]
[394401661,1763532651617,-1199.0,0.0003,5]
[394401662,1763532651627,-1000.0,0.0003,6]
[394401663,1763532651636,-429.58253669,0.0003,2]
[394401664,1763532651645,-1107.09956665,0.0003,2]
[394401665,1763532651655,-5787.87,0.0003,14]
[394401666,1763532651663,-182.725385,0.0003,7]
[394401667,1763532651672,-151.0,0.0003,7]
[394401668,1763532651682,-151.0,0.0003,7]
[394401669,1763532651692,-151.0,0.0003,7]
[394401670,1763532651702,-151.0,0.0003,7]
[394401671,1763532651711,-168.756887,0.0003,7]
[394401672,1763532651721,-168.756887,0.0003,7]
[394401673,1763532651730,-168.756887,0.0003,7]
[394401674,1763532651739,-168.756887,0.0003,7]
[394401675,1763532651748,-151.0,0.0003,7]
[394401676,1763532651758,-151.0,0.0003,7]
[394401677,1763532651768,-151.0,0.0003,7]
[394401678,1763532651777,-151.0,0.0003,7]
[394401679,1763532651786,-151.0,0.0003,7]
[394401680,1763532651795,-151.0,0.0003,7]
[394401681,1763532651804,-151.0,0.0003,7]
[394401682,1763532651813,-151.0,0.0003,7]
[394401683,1763532651822,-151.0,0.0003,7]
[394401684,1763532651831,-151.0,0.0003,7]
[394401685,1763532651840,-151.0,0.0003,7]
[394401686,1763532651849,-151.0,0.0003,7]
[394401687,1763532651858,-151.0,0.0003,7]
[394401688,1763532651867,-151.0,0.0003,7]
[394401689,1763532651877,-151.0,0.0003,7]
[394401690,1763532651886,-151.0,0.0003,7]
[394401691,1763532651896,-285.435934,0.0003,7]
[394401692,1763532651905,-285.435934,0.0003,7]
[394401693,1763532651915,-285.435934,0.0003,7]
[394401694,1763532651925,-285.435934,0.0003,7]
[394401695,1763532651934,-285.435934,0.0003,7]
[394401696,1763532651944,-285.435934,0.0003,7]
[394401697,1763532651954,-285.435934,0.0003,7]
[394401698,1763532651963,-285.435934,0.0003,7]
[394401699,1763532651973,-151.0,0.0003,7]
[394401700,1763532651982,-151.0,0.0003,7]
[394401701,1763532651991,-151.0,0.0003,7]
[394401702,1763532652000,-151.0,0.0003,7]
[394401703,1763532652011,-152.678284,0.0003,7]
[394401704,1763532652020,-206.177411,0.0003,7]
[394401705,1763532652030,-206.177411,0.0003,7]
[394401706,1763532652040,-151.0,0.0003,7]
[394401707,1763532652051,-206.177411,0.0003,7]
[394401708,1763532652062,-151.0,0.0003,7]
[394401709,1763532652071,-206.177418,0.0003,7]
[394401710,1763532652081,-151.0,0.0003,7]
[394401711,1763532652091,-151.0,0.0003,7]
[394401712,1763532652100,-175.080425,0.0003,7]
[394401713,1763532652109,-1054.590418,0.0003,7]
[394401714,1763532652118,-535.742615,0.0003,7]
[394401715,1763532652128,-1054.590418,0.0003,7]
[394401716,1763532652138,-535.742615,0.0003,7]
[394401717,1763532652147,-1054.590418,0.0003,7]
[394401718,1763532652156,-535.742615,0.0003,7]
[394401719,1763532652166,-1054.59042,0.0003,7]
[394401720,1763532652177,-535.742617,0.0003,7]
[394401721,1763532652188,-151.0,0.0003,7]
[394401722,1763532652202,-151.0,0.0003,7]
[394401723,1763532652290,-151.0,0.0003,7]
[394401724,1763532652301,-1012.948085,0.0003,7]
[394401725,1763532652310,-151.0,0.0003,7]
[394401726,1763532652320,-151.0,0.0003,7]
[394401727,1763532652330,-219.558698,0.0003,7]
[394401728,1763532652340,-151.0,0.0003,7]
[394401729,1763532652349,-400.87691731,0.0003,30]
[394401730,1763532652359,-151.0,0.0003,7]
[394401731,1763532652368,-151.0,0.0003,7]
[394401732,1763532652377,-151.0,0.0003,7]
[394401733,1763532652386,-151.0,0.0003,7]
[394401734,1763532652395,-156.681556,0.0003,7]
[394401735,1763532652404,-151.0,0.0003,7]
[394401736,1763532652413,-151.0,0.0003,7]
[394401737,1763532652422,-151.0,0.0003,7]
[394401738,1763532652431,-151.0,0.0003,7]
[394401739,1763532652441,-151.0,0.0003,7]
[394401740,1763532652450,-153.370453,0.0003,7]
[394401741,1763532652459,-151.0,0.0003,7]
[394401742,1763532652469,-151.0,0.0003,7]
[394401743,1763532652478,-151.0,0.0003,7]
[394401744,1763532652487,-151.0,0.0003,7]
[394401745,1763532652496,-151.0,0.0003,7]
[394401746,1763532652506,-151.0,0.0003,7]
[394401747,1763532652516,-857.229514,0.0003,7]
[394401748,1763532652525,-857.229514,0.0003,7]
[394401749,1763532652534,-857.229514,0.0003,7]
[394401750,1763532652543,-857.229514,0.0003,7]
[394401751,1763532652552,-151.0,0.0003,7]
[394401752,1763532652561,-151.0,0.0003,7]
[394401753,1763532652570,-151.0,0.0003,7]
[394401754,1763532652579,-151.0,0.0003,7]
[394401755,1763532652588,-151.0,0.0003,7]
[394401756,1763532652597,-151.0,0.0003,7]
[394401757,1763532652606,-206.942255,0.0003,7]
[394401758,1763532652615,-206.942255,0.0003,7]
[394401759,1763532652624,-206.942255,0.0003,7]
[394401760,1763532652633,-206.942255,0.0003,7]
[394401761,1763532652642,-151.0,0.0003,7]
[394401762,1763532652651,-151.0,0.0003,7]
[394401763,1763532652660,-151.0,0.0003,7]
[394401764,1763532652669,-151.0,0.0003,7]
[394401765,1763532652678,-151.0,0.0003,7]
[394401766,1763532652687,-151.0,0.0003,7]
[394401767,1763532652696,-151.0,0.0003,7]
[394401768,1763532652705,-151.0,0.0003,7]
[394401769,1763532652715,-151.0,0.0003,7]
[394401770,1763532652725,-151.0,0.0003,7]
[394401771,1763532652736,-151.0,0.0003,7]
[394401772,1763532652745,-151.0,0.0003,7]
[394401773,1763532652754,-151.0,0.0003,7]
[394401774,1763532652765,-151.0,0.0003,7]
[394401775,1763532652774,-151.0,0.0003,7]
[394401776,1763532652783,-895.61969,0.0003,2]
[394401777,1763532652793,-895.61969,0.0003,2]
[394401778,1763532652802,-151.0,0.0003,7]
[394401779,1763532652812,-895.61969,0.0003,2]
[394401780,1763532652821,-151.0,0.0003,7]
[394401781,1763532652830,-895.61969,0.0003,2]
[394401782,1763532652840,-151.0,0.0003,7]
[394401783,1763532652849,-208.263525,0.0003,7]
[394401784,1763532652857,-208.263525,0.0003,7]
[394401785,1763532652867,-208.263525,0.0003,7]
[394401786,1763532652876,-208.263525,0.0003,7]
[394401787,1763532652885,-154.027752,0.0003,7]
[394401788,1763532652894,-151.0,0.0003,7]
[394401789,1763532652904,-151.0,0.0003,7]
[394401790,1763532652913,-272.896447,0.0003,7]
[394401791,1763532652923,-159.218276,0.0003,7]
[394401792,1763532652932,-272.896447,0.0003,7]
[394401793,1763532652942,-159.218276,0.0003,7]
[394401794,1763532652951,-272.896447,0.0003,7]
[394401795,1763532652960,-159.218276,0.0003,7]
[394401796,1763532652970,-272.896447,0.0003,7]
[394401797,1763532652979,-159.218276,0.0003,7]
[394401798,1763532652988,-423.067706,0.0003,7]
[394401799,1763532652997,-423.067706,0.0003,7]
[394401800,1763532653007,-423.067706,0.0003,7]
[394401801,1763532653017,-423.067706,0.0003,7]
[394401802,1763532653027,-254.27228,0.0003,7]
[394401803,1763532653036,-254.27228,0.0003,7]
[394401804,1763532653046,-254.27228,0.0003,7]
[394401805,1763532653056,-254.27228,0.0003,7]
[394401806,1763532653065,-151.0,0.0003,7]
[394401807,1763532653074,-169.737453,0.0003,7]